fUST/lending_fUST_20251216
["ID","MTS","AMOUNT","RATE_DAILY","PERIOD"]
[398585279,1765857065442,-1355.13247834,0.00011562,2]
[398585280,1765857065452,-382.95685666,0.00011695,2]
[398585281,1765857065463,-1862.16509977,0.00011717,2]
[398585282,1765857065473,-1287.69272432,0.00011742,2]
[398585283,1765857065483,-500.0,0.0001178,2]
[398585284,1765857065493,-7252.9007222,0.0001178,2]
[398585285,1765857065503,-3839.6,0.0001178,2]
[398585286,1765857065513,-255.30745732,0.0001178,2]
[398585287,1765857065523,-500.0,0.0001178,2]
[398585288,1765857065533,-500.0,0.0001178,2]
[398585289,1765857065545,-500.0,0.0001178,2]
[398585290,1765857065557,-500.0,0.0001178,2]
[398585291,1765857065567,-500.0,0.0001178,2]
[398585292,1765857065577,-500.0,0.0001178,2]
[398585293,1765857065587,-216.79743323,0.0001178,2]
[398585294,1765857065597,-500.0,0.0001178,2]
[398585295,1765857065607,-500.0,0.0001178,2]
[398585296,1765857065618,-500.0,0.0001178,2]
[398585297,1765857065629,-500.0,0.0001178,2]
[398585298,1765857065639,-500.0,0.0001178,2]
[398585299,1765857065652,-500.0,0.0001178,2]
[398585300,1765857065662,-500.0,0.0001178,2]
[398585301,1765857065672,-500.0,0.0001178,2]
[398585302,1765857065682,-500.0,0.0001178,2]
[398585303,1765857065692,-500.0,0.0001178,2]
[398585304,1765857065701,-500.0,0.0001178,2]
[398585305,1765857065710,-500.0,0.0001178,2]
[398585306,1765857065720,-500.0,0.0001178,2]
[398585307,1765857065729,-500.0,0.0001178,2]
[398585308,1765857065738,-609.81,0.0001178,2]
[398585309,1765857065748,-600.92,0.0001178,2]
[398585310,1765857065758,-500.26,0.0001178,2]
[398585311,1765857065767,-500.0,0.0001178,2]
[398585312,1765857065776,-500.0,0.0001178,2]
[398585313,1765857065786,-635.26,0.0001178,2]
[398585314,1765857065795,-500.0,0.0001178,2]
[398585315,1765857065804,-500.0,0.0001178,2]
[398585316,1765857065814,-2131.63,0.0001178,2]
[398585317,1765857065823,-500.0,0.0001178,2]
[398585318,1765857065833,-1239.05,0.0001178,2]
[398585319,1765857065842,-500.0,0.0001178,2]
[398585320,1765857065851,-500.0,0.0001178,2]
[398585321,1765857065861,-832.5,0.0001178,2]
[398585322,1765857065870,-500.0,0.0001178,2]
[398585323,1765857065880,-500.0,0.0001178,2]
[398585324,1765857065890,-500.0,0.0001178,2]
[398585325,1765857065899,-500.0,0.0001178,2]
[398585326,1765857065909,-500.0,0.0001178,2]
[398585327,1765857065919,-1281.42,0.0001178,2]
[398585328,1765857065929,-706.65,0.0001178,2]
[398585329,1765857065939,-500.0,0.0001178,2]
[398585330,1765857065951,-500.0,0.0001178,2]
[398585331,1765857065961,-500.0,0.0001178,2]
[398585332,1765857065972,-500.0,0.0001178,2]
[398585333,1765857065983,-970.13,0.0001178,2]
[398585334,1765857065995,-500.0,0.0001178,2]
[398585335,1765857066007,-500.0,0.0001178,2]
[398585336,1765857066016,-905.09,0.0001178,2]
[398585337,1765857066027,-393.93956964,0.0001178,2]
[398585338,1765857066038,-231.87871176,0.0001178,2]
[398585339,1765857066049,-500.0,0.0001178,2]
[398585340,1765857066061,-500.0,0.0001178,2]
[398585341,1765857066074,-500.0,0.0001178,2]
[398585342,1765857066086,-500.0,0.0001178,2]
[398585343,1765857066098,-500.0,0.0001178,2]
[398585344,1765857066109,-1438.77,0.0001178,2]
[398585345,1765857066122,-2194.500583,0.0001178,2]
[398585346,1765857066139,-500.0,0.0001178,2]
[398585347,1765857066151,-500.0,0.0001178,2]
[398585348,1765857066163,-500.0,0.0001178,2]
[398585349,1765857066176,-867.63,0.0001178,2]
[398585350,1765857066187,-922.31,0.0001178,2]
[398585351,1765857066199,-500.81,0.0001178,2]
[398585352,1765857066213,-500.0,0.0001178,2]
[398585353,1765857066224,-500.0,0.0001178,2]
[398585354,1765857066236,-808.83,0.0001178,2]
[398585355,1765857066248,-500.0,0.0001178,2]
[398585356,1765857066260,-170.47955607,0.0001178,2]
[398585357,1765857066271,-772.63,0.0001178,2]
[398585358,1765857066283,-248.72112551,0.0001178,2]
[398585359,1765857066294,-500.0,0.0001178,2]
[398585360,1765857066307,-500.0,0.0001178,2]
[398585361,1765857066317,-500.0,0.0001178,2]
[398585362,1765857066327,-500.0,0.0001178,2]
[398585363,1765857066336,-724.68,0.0001178,2]
[398585364,1765857066346,-728.64,0.0001178,2]
[398585365,1765857066356,-1000.0,0.0001178,2]
[398585366,1765857066367,-500.0,0.0001178,2]
[398585367,1765857066377,-713.19,0.0001178,2]
[398585368,1765857066386,-788.39,0.0001178,2]
[398585369,1765857066396,-711.19,0.0001178,2]
[398585370,1765857066407,-500.0,0.0001178,2]
[398585371,1765857066417,-1903.91,0.0001178,2]
[398585372,1765857066427,-500.0,0.0001178,2]
[398585373,1765857066437,-500.0,0.0001178,2]
[398585374,1765857066447,-1163.59,0.0001178,2]
[398585375,1765857066456,-541.86,0.0001178,2]
[398585376,1765857066466,-873.56,0.0001178,2]
[398585377,1765857066476,-500.0,0.0001178,2]
[398585378,1765857066485,-500.0,0.0001178,2]
[398585379,1765857066495,-500.0,0.0001178,2]
[398585380,1765857066504,-500.0,0.0001178,2]
[398585381,1765857066514,-500.0,0.0001178,2]
[398585382,1765857066523,-500.0,0.0001178,2]
[398585383,1765857066533,-623.95,0.0001178,2]
[398585384,1765857066543,-500.0,0.0001178,2]
[398585385,1765857066553,-500.0,0.0001178,2]
[398585386,1765857066562,-500.0,0.0001178,2]
[398585387,1765857066572,-500.0,0.0001178,2]
[398585388,1765857066581,-939.88,0.0001178,2]
[398585389,1765857066590,-500.0,0.0001178,2]
[398585390,1765857066599,-500.0,0.0001178,2]
[398585391,1765857066608,-514.0,0.0001178,2]
[398585392,1765857066618,-500.0,0.0001178,2]
[398585393,1765857066628,-500.0,0.0001178,2]
[398585394,1765857066637,-500.0,0.0001178,2]
[398585395,1765857066647,-500.0,0.0001178,2]
[398585396,1765857066656,-506.87633985,0.0001178,2]
[398585397,1765857066667,-500.0,0.0001178,2]
[398585398,1765857066676,-1404.96,0.0001178,2]
[398585399,1765857066686,-2624.19,0.0001178,2]
[398585400,1765857066696,-1165.8,0.0001178,2]
[398585401,1765857066705,-782.31,0.0001178,2]
[398585402,1765857066715,-500.0,0.0001178,2]
[398585403,1765857066725,-500.0,0.0001178,2]
[398585404,1765857066892,-500.0,0.0001178,2]
[398585405,1765857066903,-500.0,0.0001178,2]
[398585406,1765857066913,-500.0,0.0001178,2]
[398585407,1765857066923,-500.0,0.0001178,2]
[398585408,1765857066934,-500.0,0.0001178,2]
[398585409,1765857066945,-500.0,0.0001178,2]
[398585410,1765857066955,-500.0,0.0001178,2]
[398585411,1765857066965,-500.0,0.0001178,2]
[398585412,1765857066976,-500.0,0.0001178,2]
[398585413,1765857066986,-192.80977473,0.0001178,2]
[398585414,1765857066996,-500.0,0.0001178,2]
[398585415,1765857067006,-500.0,0.0001178,2]
[398585416,1765857067017,-2047.92,0.0001178,2]
[398585417,1765857067029,-500.0,0.0001178,2]
[398585418,1765857067039,-1419.58,0.0001178,2]
[398585419,1765857067050,-500.0,0.0001178,2]
[398585420,1765857067060,-500.0,0.0001178,2]
[398585421,1765857067071,-2858.67,0.0001178,2]
[398585422,1765857067081,-915.74,0.0001178,2]
[398585423,1765857067090,-500.0,0.0001178,2]
[398585424,1765857067100,-561.34,0.0001178,2]
[398585425,1765857067109,-862.14,0.0001178,2]
[398585426,1765857067119,-500.0,0.0001178,2]
[398585427,1765857067132,-728.64,0.0001178,2]
[398585428,1765857067142,-500.0,0.0001178,2]
[398585429,1765857067151,-1196.22,0.0001178,2]
[398585430,1765857067161,-500.0,0.0001178,2]
[398585431,1765857067171,-764.95,0.0001178,2]
[398585432,1765857067182,-500.0,0.0001178,2]
[398585433,1765857067192,-1723.48,0.0001178,2]
[398585434,1765857067202,-500.0,0.0001178,2]
[398585435,1765857067213,-795.49,0.0001178,2]
[398585436,1765857067224,-500.0,0.0001178,2]
[398585437,1765857067234,-428.6778092,0.0001178,2]
[398585438,1765857067248,-579.03,0.0001178,2]
[398585439,1765857067259,-527.94,0.0001178,2]
[398585440,1765857067268,-500.0,0.0001178,2]
[398585441,1765857067278,-613.42,0.0001178,2]
[398585442,1765857067289,-852.9,0.0001178,2]
[398585443,1765857067300,-1741.83,0.0001178,2]
[398585444,1765857067309,-500.0,0.0001178,2]
[398585445,1765857067319,-500.0,0.0001178,2]
[398585446,1765857067329,-579.96,0.0001178,2]
[398585447,1765857067339,-500.0,0.0001178,2]
[398585448,1765857067349,-500.0,0.0001178,2]
[398585449,1765857067359,-500.0,0.0001178,2]
[398585450,1765857067369,-500.0,0.0001178,2]
[398585451,1765857067379,-882.7,0.0001178,2]
[398585452,1765857067389,-500.0,0.0001178,2]
[398585453,1765857067398,-909.29,0.0001178,2]
[398585454,1765857067408,-500.0,0.0001178,2]
[398585455,1765857067418,-500.0,0.0001178,2]
[398585456,1765857067428,-500.0,0.0001178,2]
[398585457,1765857067439,-500.0,0.0001178,2]
[398585458,1765857067449,-500.0,0.0001178,2]
[398585459,1765857067458,-500.0,0.0001178,2]
[398585460,1765857067469,-500.0,0.0001178,2]
[398585461,1765857067478,-500.0,0.0001178,2]
[398585462,1765857067488,-1389.03,0.0001178,2]
[398585463,1765857067498,-652.64,0.0001178,2]
[398585464,1765857067507,-500.0,0.0001178,2]
[398585465,1765857067516,-500.0,0.0001178,2]
[398585466,1765857067526,-500.0,0.0001178,2]
[398585467,1765857067536,-863.06,0.0001178,2]
[398585468,1765857067546,-946.95,0.0001178,2]
[398585469,1765857067556,-500.0,0.0001178,2]
[398585470,1765857067566,-500.0,0.0001178,2]
[398585471,1765857067577,-752.63,0.0001178,2]
[398585472,1765857067586,-500.0,0.0001178,2]
[398585473,1765857067596,-500.0,0.0001178,2]
[398585474,1765857067607,-500.0,0.0001178,2]
[398585475,1765857067617,-1824.47,0.0001178,2]
[398585476,1765857067627,-631.43,0.0001178,2]
[398585477,1765857067637,-548.39,0.0001178,2]
[398585478,1765857067647,-500.0,0.0001178,2]
[398585479,1765857067656,-5069.0,0.0001178,2]
[398585480,1765857067666,-869.38,0.0001178,2]
[398585481,1765857067675,-500.0,0.0001178,2]
[398585482,1765857067684,-1418.86,0.0001178,2]
[398585483,1765857067694,-500.0,0.0001178,2]
[398585484,1765857067706,-500.0,0.0001178,2]
[398585485,1765857067716,-500.0,0.0001178,2]
[398585486,1765857067726,-1398.62,0.0001178,2]
[398585487,1765857067735,-2490.08,0.0001178,2]
[398585488,1765857067745,-500.0,0.0001178,2]
[398585489,1765857067756,-500.0,0.0001178,2]
[398585490,1765857067766,-248.16486452,0.0001178,2]
[398585491,1765857067776,-886.06,0.0001178,2]
[398585492,1765857067786,-500.0,0.0001178,2]
[398585493,1765857067796,-555.44,0.0001178,2]
[398585494,1765857067807,-500.0,0.0001178,2]
[398585495,1765857067817,-500.0,0.0001178,2]
[398585496,1765857067827,-886.48,0.0001178,2]
[398585497,1765857067837,-528.18,0.0001178,2]
[398585498,1765857067846,-1144.03,0.0001178,2]
[398585499,1765857067856,-1839.21,0.0001178,2]
[398585500,1765857067865,-500.0,0.0001178,2]
[398585501,1765857067874,-500.0,0.0001178,2]
[398585502,1765857067884,-760.81,0.0001178,2]
[398585503,1765857067894,-500.0,0.0001178,2]
[398585504,1765857067904,-500.0,0.0001178,2]
[398585505,1765857067914,-192.29757794,0.0001178,2]
[398585506,1765857067923,-578.54,0.0001178,2]
[398585507,1765857067933,-500.0,0.0001178,2]
[398585508,1765857067943,-525.22,0.0001178,2]
[398585509,1765857067953,-1799.91,0.0001178,2]
[398585510,1765857067963,-500.0,0.0001178,2]
[398585511,1765857067972,-1395.69,0.0001178,2]
[398585512,1765857067982,-500.0,0.0001178,2]
[398585513,1765857067991,-500.0,0.0001178,2]
[398585514,1765857068000,-500.0,0.0001178,2]
[398585515,1765857068012,-500.0,0.0001178,2]
[398585516,1765857068021,-2489.6,0.0001178,2]
[398585517,1765857068031,-500.0,0.0001178,2]
[398585518,1765857068041,-500.0,0.0001178,2]
[398585519,1765857068050,-500.0,0.0001178,2]
[398585520,1765857068060,-500.0,0.0001178,2]
[398585521,1765857068070,-500.0,0.0001178,2]
[398585522,1765857068080,-500.0,0.0001178,2]
[398585523,1765857068089,-1851.38,0.0001178,2]
[398585524,1765857068099,-3564.58,0.0001178,2]
[398585525,1765857068109,-1892.77,0.0001178,2]
[398585526,1765857068119,-500.0,0.0001178,2]
[398585527,1765857068132,-500.0,0.0001178,2]
[398585528,1765857068142,-625.7,0.0001178,2]
[398585529,1765857068153,-554.05,0.0001178,2]
[398585530,1765857068163,-614.05,0.0001178,2]
[398585531,1765857068174,-500.0,0.0001178,2]
[398585532,1765857068184,-1268.17,0.0001178,2]
[398585533,1765857068193,-246.31675044,0.0001178,2]
[398585534,1765857068203,-500.0,0.0001178,2]
[398585535,1765857068212,-500.0,0.0001178,2]
[398585536,1765857068221,-2548.3,0.0001178,2]
[398585537,1765857068230,-964.39,0.0001178,2]
[398585538,1765857068239,-500.0,0.0001178,2]
[398585539,1765857068248,-500.0,0.0001178,2]
[398585540,1765857068258,-500.0,0.0001178,2]
[398585541,1765857068268,-2757.29,0.0001178,2]
[398585542,1765857068278,-921.12,0.0001178,2]
[398585543,1765857068287,-1379.13,0.0001178,2]
[398585544,1765857068298,-500.0,0.0001178,2]
[398585545,1765857068307,-1281.57,0.0001178,2]
[398585546,1765857068316,-500.0,0.0001178,2]
[398585547,1765857068327,-500.0,0.0001178,2]
[398585548,1765857068338,-500.0,0.0001178,2]
[398585549,1765857068348,-312.42544037,0.0001178,2]
[398585550,1765857068358,-591.0,0.0001178,2]
[398585551,1765857068368,-500.0,0.0001178,2]
[398585552,1765857068378,-500.0,0.0001178,2]
[398585553,1765857068388,-500.0,0.0001178,2]
[398585554,1765857068399,-621.24,0.0001178,2]
[398585555,1765857068410,-500.0,0.0001178,2]
[398585556,1765857068421,-500.0,0.0001178,2]
[398585557,1765857068433,-858.92,0.0001178,2]
[398585558,1765857068445,-604.25,0.0001178,2]
[398585559,1765857068457,-601.93,0.0001178,2]
[398585560,1765857068469,-1724.77,0.0001178,2]
[398585561,1765857068485,-500.0,0.0001178,2]
[398585562,1765857068497,-1883.58,0.0001178,2]
[398585563,1765857068508,-500.0,0.0001178,2]
[398585564,1765857068520,-500.0,0.0001178,2]
[398585565,1765857068533,-897.25,0.0001178,2]
[398585566,1765857068544,-1210.79,0.0001178,2]
[398585567,1765857068557,-1351.77,0.0001178,2]
[398585568,1765857068569,-500.0,0.0001178,2]
[398585569,1765857068580,-773.94,0.0001178,2]
[398585570,1765857068591,-500.0,0.0001178,2]
[398585571,1765857068601,-724.47,0.0001178,2]
[398585572,1765857068611,-500.0,0.0001178,2]
[398585573,1765857068622,-1559.66,0.0001178,2]
[398585574,1765857068632,-500.0,0.0001178,2]
[398585575,1765857068642,-500.0,0.0001178,2]
[398585576,1765857068652,-658.19,0.0001178,2]
[398585577,1765857068662,-901.9,0.0001178,2]
[398585578,1765857068672,-500.0,0.0001178,2]
[398585579,1765857068681,-1664.36,0.0001178,2]
[398585580,1765857068690,-500.0,0.0001178,2]
[398585581,1765857068699,-500.0,0.0001178,2]
[398585582,1765857068709,-540.02,0.0001178,2]
[398585583,1765857068718,-1404.56,0.0001178,2]
[398585584,1765857068727,-1280.6,0.0001178,2]
[398585585,1765857068737,-500.0,0.0001178,2]
[398585586,1765857068747,-500.0,0.0001178,2]
[398585587,1765857068756,-577.11,0.0001178,2]
[398585588,1765857068766,-517.8,0.0001178,2]
[398585589,1765857068776,-500.0,0.0001178,2]
[398585590,1765857068785,-851.34,0.0001178,2]
[398585591,1765857068795,-500.0,0.0001178,2]
[398585592,1765857068804,-267.64216484,0.0001178,2]
[398585593,1765857068813,-1225.41,0.0001178,2]
[398585594,1765857068823,-500.0,0.0001178,2]
[398585595,1765857068833,-500.0,0.0001178,2]
[398585596,1765857068843,-500.0,0.0001178,2]
[398585597,1765857068853,-500.0,0.0001178,2]
[398585598,1765857068863,-6779.98,0.0001178,2]
[398585599,1765857068873,-500.0,0.0001178,2]
[398585600,1765857068882,-500.0,0.0001178,2]
[398585601,1765857068891,-500.0,0.0001178,2]
[398585602,1765857068901,-500.0,0.0001178,2]
[398585603,1765857068910,-500.0,0.0001178,2]
[398585604,1765857068920,-330.34893187,0.0001178,2]
[398585605,1765857068930,-879.62,0.0001178,2]
[398585606,1765857068939,-500.0,0.0001178,2]
[398585607,1765857068949,-849.34,0.0001178,2]
[398585608,1765857068958,-500.0,0.0001178,2]
[398585609,1765857068968,-4220.16,0.0001178,2]
[398585610,1765857068977,-500.0,0.0001178,2]
[398585611,1765857068986,-500.0,0.0001178,2]
[398585612,1765857068996,-500.0,0.0001178,2]
[398585613,1765857069007,-500.0,0.0001178,2]
[398585614,1765857069020,-500.0,0.0001178,2]
[398585615,1765857069029,-2541.48,0.0001178,2]
[398585616,1765857069039,-500.0,0.0001178,2]
[398585617,1765857069048,-618.0,0.0001178,2]
[398585618,1765857069058,-1330.94,0.0001178,2]
[398585619,1765857069069,-502.75,0.0001178,2]
[398585620,1765857069090,-500.0,0.0001178,2]
[398585621,1765857069101,-510.35011028,0.0001178,2]
[398585622,1765857069111,-1721.89,0.0001178,2]
[398585623,1765857069124,-500.0,0.0001178,2]
[398585624,1765857069146,-1471.73,0.0001178,2]
[398585625,1765857069166,-1794.66,0.0001178,2]
[398585626,1765857069186,-500.0,0.0001178,2]
[398585627,1765857069203,-500.0,0.0001178,2]
[398585628,1765857069212,-1436.2,0.0001178,2]
[398585629,1765857069221,-919.0,0.0001178,2]
[398585630,1765857069230,-1483.78,0.0001178,2]
[398585631,1765857069239,-500.0,0.0001178,2]
[398585632,1765857069248,-9283.55,0.0001178,2]
[398585633,1765857069258,-1109.0,0.0001178,2]
[398585634,1765857069268,-930.78,0.0001178,2]
[398585635,1765857069277,-500.0,0.0001178,2]
[398585636,1765857069286,-700.85,0.0001178,2]
[398585637,1765857069296,-500.0,0.0001178,2]
[398585638,1765857069304,-2453.55,0.0001178,2]
[398585639,1765857069314,-707.6,0.0001178,2]
[398585640,1765857069324,-536.25,0.0001178,2]
[398585641,1765857069333,-500.0,0.0001178,2]
[398585642,1765857069342,-500.0,0.0001178,2]
[398585643,1765857069351,-990.55,0.0001178,2]
[398585644,1765857069359,-500.0,0.0001178,2]
[398585645,1765857069368,-2349.49,0.0001178,2]
[398585646,1765857069377,-2196.03,0.0001178,2]
[398585647,1765857069386,-500.0,0.0001178,2]
[398585648,1765857069395,-1420.86,0.0001178,2]
[398585649,1765857069404,-1354.29,0.0001178,2]
[398585650,1765857069413,-316.4722842,0.0001178,2]
[398585651,1765857069422,-1566.76,0.0001178,2]
[398585652,1765857069430,-500.0,0.0001178,2]
[398585653,1765857069441,-1789.22,0.0001178,2]
[398585654,1765857069451,-500.0,0.0001178,2]
[398585655,1765857069461,-975.67,0.0001178,2]
[398585656,1765857069471,-997.09,0.0001178,2]
[398585657,1765857069480,-1344.17,0.0001178,2]
[398585658,1765857069490,-600.75,0.0001178,2]
[398585659,1765857069500,-500.0,0.0001178,2]
[398585660,1765857069511,-500.0,0.0001178,2]
[398585661,1765857069519,-501.91766225,0.0001178,2]
[398585662,1765857069529,-4842.15,0.0001178,2]
[398585663,1765857069538,-500.0,0.0001178,2]
[398585664,1765857069548,-938.39,0.0001178,2]
[398585665,1765857069557,-513.63,0.0001178,2]
[398585666,1765857069566,-1372.69,0.0001178,2]
[398585667,1765857069574,-561.03324712,0.0001178,2]
[398585668,1765857069583,-500.0,0.0001178,2]
[398585669,1765857069592,-500.0,0.0001178,2]
[398585670,1765857069601,-1192.19,0.0001178,2]
[398585671,1765857069610,-500.0,0.0001178,2]
[398585672,1765857069619,-2748.55,0.0001178,2]
[398585673,1765857069628,-825.5,0.0001178,2]
[398585674,1765857069637,-708.11,0.0001178,2]
[398585675,1765857069646,-2322.09,0.0001178,2]
[398585676,1765857069656,-2125.4,0.0001178,2]
[398585677,1765857069665,-500.0,0.0001178,2]
[398585678,1765857069675,-500.0,0.0001178,2]
[398585679,1765857069684,-500.0,0.0001178,2]
[398585680,1765857069693,-6830.61,0.0001178,2]
[398585681,1765857069703,-8377.94,0.0001178,2]
[398585682,1765857069712,-500.0,0.0001178,2]
[398585683,1765857069721,-2121.87,0.0001178,2]
[398585684,1765857069730,-500.0,0.0001178,2]
[398585685,1765857069739,-858.84,0.0001178,2]
[398585686,1765857069748,-945.29,0.0001178,2]
[398585687,1765857069757,-1092.05,0.0001178,2]
[398585688,1765857069766,-580.26,0.0001178,2]
[398585689,1765857069775,-500.0,0.0001178,2]
[398585690,1765857069785,-500.0,0.0001178,2]
[398585691,1765857069943,-500.0,0.0001178,2]
[398585692,1765857069952,-500.0,0.0001178,2]
[398585693,1765857069962,-2445.72,0.0001178,2]
[398585694,1765857069971,-500.0,0.0001178,2]
[398585695,1765857069980,-3903.36,0.0001178,2]
[398585696,1765857069989,-537.08,0.0001178,2]
[398585697,1765857069998,-618.36,0.0001178,2]
[398585698,1765857070007,-500.0,0.0001178,2]
[398585699,1765857070016,-4243.55,0.0001178,2]
[398585700,1765857070026,-500.0,0.0001178,2]
[398585701,1765857070035,-500.0,0.0001178,2]
[398585702,1765857070044,-1422.62,0.0001178,2]
[398585703,1765857070053,-800.38,0.0001178,2]
[398585704,1765857070062,-1202.09,0.0001178,2]
[398585705,1765857070072,-799.6,0.0001178,2]
[398585706,1765857070083,-520.25,0.0001178,2]
[398585707,1765857070092,-14584.18,0.0001178,2]
[398585708,1765857070103,-500.0,0.0001178,2]
[398585709,1765857070113,-2341.35,0.0001178,2]
[398585710,1765857070123,-500.0,0.0001178,2]
[398585711,1765857070136,-614.63,0.0001178,2]
[398585712,1765857070146,-229.05560614,0.0001178,2]
[398585713,1765857070155,-2042.99,0.0001178,2]
[398585714,1765857070164,-3921.7,0.0001178,2]
[398585715,1765857070175,-500.0,0.0001178,2]
[398585716,1765857070183,-2154.94,0.0001178,2]
[398585717,1765857070192,-1164.37,0.0001178,2]
[398585718,1765857070202,-1452.17,0.0001178,2]
[398585719,1765857070211,-940.07,0.0001178,2]
[398585720,1765857070220,-500.0,0.0001178,2]
[398585721,1765857070231,-3354.89,0.0001178,2]
[398585722,1765857070239,-500.0,0.0001178,2]
[398585723,1765857070249,-885.63,0.0001178,2]
[398585724,1765857070258,-500.0,0.0001178,2]
[398585725,1765857070267,-583.17,0.0001178,2]
[398585726,1765857070277,-934.17,0.0001178,2]
[398585727,1765857070286,-500.0,0.0001178,2]
[398585728,1765857070295,-500.0,0.0001178,2]
[398585729,1765857070304,-2662.12,0.0001178,2]
[398585730,1765857070314,-1389.33,0.0001178,2]
[398585731,1765857070322,-2691.53,0.0001178,2]
[398585732,1765857070331,-500.0,0.0001178,2]
[398585733,1765857070340,-500.0,0.0001178,2]
[398585734,1765857070349,-500.0,0.0001178,2]
[398585735,1765857070359,-500.0,0.0001178,2]
[398585736,1765857070368,-947.29,0.0001178,2]
[398585737,1765857070377,-500.0,0.0001178,2]
[398585738,1765857070387,-500.0,0.0001178,2]
[398585739,1765857070397,-1434.18,0.0001178,2]
[398585740,1765857070406,-607.29,0.0001178,2]
[398585741,1765857070415,-500.0,0.0001178,2]
[398585742,1765857070426,-500.0,0.0001178,2]
[398585743,1765857070435,-500.0,0.0001178,2]
[398585744,1765857070446,-500.0,0.0001178,2]
[398585745,1765857070455,-500.0,0.0001178,2]
[398585746,1765857070464,-3493.92,0.0001178,2]
[398585747,1765857070473,-500.0,0.0001178,2]
[398585748,1765857070482,-500.0,0.0001178,2]
[398585749,1765857070491,-1734.78,0.0001178,2]
[398585750,1765857070500,-529.53,0.0001178,2]
[398585751,1765857070509,-500.0,0.0001178,2]
[398585752,1765857070518,-1497.62,0.0001178,2]
[398585753,1765857070527,-1890.34,0.0001178,2]
[398585754,1765857070536,-1724.14,0.0001178,2]
[398585755,1765857070545,-1321.15,0.0001178,2]
[398585756,1765857070555,-500.0,0.0001178,2]
[398585757,1765857070565,-500.0,0.0001178,2]
[398585758,1765857070574,-500.0,0.0001178,2]
[398585759,1765857070584,-627.84,0.0001178,2]
[398585760,1765857070593,-1136.33,0.0001178,2]
[398585761,1765857070602,-500.0,0.0001178,2]
[398585762,1765857070612,-500.0,0.0001178,2]
[398585763,1765857070622,-2584.7,0.0001178,2]
[398585764,1765857070633,-500.0,0.0001178,2]
[398585765,1765857070642,-906.3,0.0001178,2]
[398585766,1765857070652,-523.47,0.0001178,2]
[398585767,1765857070662,-500.0,0.0001178,2]
[398585768,1765857070671,-500.0,0.0001178,2]
[398585769,1765857070681,-860.33,0.0001178,2]
[398585770,1765857070691,-1103.9,0.0001178,2]
[398585771,1765857070701,-526.2,0.0001178,2]
[398585772,1765857070710,-549.72691833,0.0001178,2]
[398585773,1765857070719,-625.36,0.0001178,2]
[398585774,1765857070728,-500.0,0.0001178,2]
[398585775,1765857070738,-500.0,0.0001178,2]
[398585776,1765857070747,-500.0,0.0001178,2]
[398585777,1765857070755,-392.13265376,0.0001178,2]
[398585778,1765857070768,-506.64311713,0.0001178,2]